[Event "NJSK 2024 Cm"]
[Site "Groningen, Netherlands"]
[Date "2024.05.02"]
[Round "6.4"]
[White "Elangkumaran, Anumitra"]
[Black "Ganeshram, Niranjana"]
[Result "1-0"]
[TimeControl "90min/40moves + 30min + 30sec/move"]
[WhiteElo "1605"]
[BlackElo "1566"]

1. e4 {[%clk 01:30:59]} {[%emt 00:00:02]} e5 {[%clk 01:30:56]} {[%emt
00:00:04]} 2. Nf3 {[%clk 01:31:26]} {[%emt 00:00:03]} Nc6 {[%clk 01:31:20]}
{[%emt 00:00:07]} 3. Bc4 {[%clk 01:31:51]} {[%emt 00:00:04]} Bc5 {[%clk
01:31:46]} {[%emt 00:00:03]} 4. c3 {[%clk 01:32:14]} {[%emt 00:00:08]} Nf6
{[%clk 01:32:11]} {[%emt 00:00:05]} 5. d3 {[%clk 01:32:28]} {[%emt 00:00:16]}
h6 {[%clk 01:32:24]} {[%emt 00:00:17]} 6. Nbd2 {[%clk 01:32:29]} {[%emt
00:00:29]} d6 {[%clk 01:32:28]} {[%emt 00:00:25]} 7. Nf1 {[%emt 00:00:23]} Ng4
{[%clk 01:32:35]} {[%emt 00:00:21]} 8. Ne3 {[%clk 01:28:14]} {[%emt 00:04:55]}
Nf6 {[%clk 01:31:38]} {[%emt 00:01:26]} 9. O-O {[%clk 01:27:36]} {[%emt
00:01:08]} Bd7 {[%clk 01:30:40]} {[%emt 00:01:29]} 10. h3 {[%clk 01:23:02]}
{[%emt 00:05:04]} Qe7 {[%clk 01:26:19]} {[%emt 00:04:52]} 11. a4 {[%clk
01:19:19]} {[%emt 00:04:12]} a6 {[%clk 01:24:32]} {[%emt 00:02:18]} 12. b4
{[%clk 01:16:06]} {[%emt 00:03:42]} Ba7 {[%clk 01:24:50]} {[%emt 00:00:12]} 13.
Nd5 {[%clk 01:11:23]} {[%emt 00:05:13]} Nxd5 {[%clk 01:24:20]} {[%emt
00:01:00]} 14. exd5 {[%clk 01:10:57]} {[%emt 00:00:55]} Nd8 {[%clk 01:24:31]}
{[%emt 00:00:20]} 15. Be3 {[%clk 01:09:18]} {[%emt 00:02:09]} O-O {[%clk
01:24:01]} {[%emt 00:01:00]} 16. Nd2 {[%clk 01:06:33]} {[%emt 00:03:15]} c6
{[%clk 01:22:52]} {[%emt 00:01:39]} 17. Bxa7 {[%clk 01:03:23]} {[%emt
00:03:38]} Rxa7 {[%clk 01:23:17]} {[%emt 00:00:08]} 18. Re1 {[%clk 00:59:05]}
{[%emt 00:04:46]} Qg5 {[%clk 01:19:35]} {[%emt 00:04:12]} 19. Ne4 {[%clk
00:54:59]} {[%emt 00:04:36]} Qg6 {[%clk 01:18:32]} {[%emt 00:01:34]} 20. Qf3
{[%clk 00:53:22]} {[%emt 00:02:06]} b5 {[%clk 01:15:21]} {[%emt 00:03:42]} 21.
dxc6 {[%clk 00:51:49]} {[%emt 00:02:03]} bxc4 {[%clk 01:14:45]} {[%emt
00:01:06]} 22. cxd7 {[%clk 00:51:33]} {[%emt 00:00:45]} cxd3 {[%clk 01:14:31]}
{[%emt 00:00:44]} 23. Qxd3 {[%clk 00:51:26]} {[%emt 00:00:37]} Rxd7 {[%clk
01:14:15]} {[%emt 00:00:46]} 24. Qxa6 {[%clk 00:49:48]} {[%emt 00:02:07]} f5
{[%clk 01:13:27]} {[%emt 00:01:20]} 25. Ng3 {[%clk 00:46:11]} {[%emt 00:04:07]}
f4 {[%clk 01:11:56]} {[%emt 00:02:01]} 26. Ne4 {[%clk 00:44:23]} {[%emt
00:02:18]} f3 {[%clk 01:10:40]} {[%emt 00:01:47]} 27. Ng3 {[%clk 00:41:36]}
{[%emt 00:03:16]} h5 {[%clk 01:08:19]} {[%emt 00:02:51]} 28. Qc4+ {[%clk
00:39:22]} {[%emt 00:02:45]} Rdf7 {[%clk 01:04:15]} {[%emt 00:04:34]} 29. gxf3
{[%clk 00:36:22]} {[%emt 00:03:28]} Ne6 {[%clk 01:03:37]} {[%emt 00:01:09]} 30.
Qe4 {[%clk 00:33:28]} {[%emt 00:03:24]} Qg5 {[%clk 01:02:27]} {[%emt 00:01:40]}
31. h4 {[%clk 00:33:08]} {[%emt 00:00:50]} Qd2 {[%clk 01:00:54]} {[%emt
00:02:02]} 32. Qe3 {[%clk 00:31:50]} {[%emt 00:01:49]} Qd5 {[%clk 01:00:22]}
{[%emt 00:01:03]} 33. Qe4 {[%clk 00:30:31]} {[%emt 00:01:48]} Qb3 {[%clk
00:59:25]} {[%emt 00:01:27]} 34. Re3 {[%clk 00:29:46]} {[%emt 00:01:15]} Nf4
{[%clk 00:58:33]} {[%emt 00:01:22]} 35. a5 {[%clk 00:27:51]} {[%emt 00:02:25]}
Qb2 {[%clk 00:57:23]} {[%emt 00:01:40]} 36. Rf1 {[%clk 00:25:57]} {[%emt
00:02:24]} Qb3 {[%clk 00:54:56]} {[%emt 00:02:57]} 37. Rfe1 {[%clk 00:23:27]}
{[%emt 00:03:00]} Qe6 {[%clk 00:54:56]} {[%emt 00:00:31]} 38. Ne2 {[%clk
00:22:16]} {[%emt 00:01:41]} d5 {[%clk 00:53:43]} {[%emt 00:01:43]} 39. Nxf4
{[%clk 00:21:55]} {[%emt 00:00:49]} Rxf4 {[%clk 00:53:42]} {[%emt 00:00:33]} 40.
Qxe5 {[%clk 00:21:37]} {[%emt 00:00:45]} Qg6+ {[%clk 00:53:10]} {[%emt
00:01:03]} 41. Qg5 {[%clk 00:21:33]} {[%emt 00:00:35]} Qf7 {[%clk 00:49:50]}
{[%emt 00:03:50]} 42. Re7 {[%clk 00:19:55]} {[%emt 00:02:08]} Rg4+ {[%clk
00:48:55]} {[%emt 00:01:25]} 43. Qxg4 {[%clk 00:19:30]} {[%emt 00:00:55]} hxg4
{[%clk 00:48:51]} {[%emt 00:00:34]} 44. Rxf7 {[%clk 00:19:50]} {[%emt
00:00:10]} Rxf7 {[%clk 00:49:11]} {[%emt 00:00:10]} 45. fxg4 {[%clk 00:19:01]}
{[%emt 00:01:19]} Rf4 {[%clk 00:49:13]} {[%emt 00:00:28]} 1-0

[Event "NJSK 2024 Cm"]
[Site "Groningen, Netherlands"]
[Date "2024.05.02"]
[Round "6.5"]
[White "Barbier, Emma"]
[Black "Regterschot, Frederieke"]
[Result "0-1"]
[TimeControl "90min/40moves + 30min + 30sec/move"]
[WhiteElo "1473"]
[BlackElo "1292"]

1. e4 {[%clk 01:30:59]} {[%emt 00:00:02]} e5 {[%clk 01:30:53]} {[%emt
00:00:08]} 2. Nf3 {[%clk 01:31:22]} {[%emt 00:00:07]} Nc6 {[%clk 01:31:17]}
{[%emt 00:00:05]} 3. Bc4 {[%clk 01:31:45]} {[%emt 00:00:07]} Bc5 {[%clk
01:31:33]} {[%emt 00:00:14]} 4. Nc3 {[%clk 01:32:09]} {[%emt 00:00:06]} Nf6
{[%clk 01:31:42]} {[%emt 00:00:21]} 5. d3 {[%clk 01:32:32]} {[%emt 00:00:07]}
h6 {[%clk 01:32:00]} {[%emt 00:00:11]} 6. O-O {[%clk 01:32:57]} {[%emt
00:00:05]} O-O {[%clk 01:32:19]} {[%emt 00:00:12]} 7. Be3 {[%clk 01:33:22]}
{[%emt 00:00:05]} Bxe3 {[%clk 01:32:31]} {[%emt 00:00:17]} 8. fxe3 {[%clk
01:33:48]} {[%emt 00:00:05]} d6 {[%clk 01:32:50]} {[%emt 00:00:11]} 9. h3
{[%clk 01:34:10]} {[%emt 00:00:08]} Re8 {[%clk 01:32:46]} {[%emt 00:00:34]} 10.
Qd2 {[%clk 01:34:21]} {[%emt 00:00:18]} a6 {[%clk 01:32:07]} {[%emt 00:01:11]}
11. Rae1 {[%clk 01:34:21]} {[%emt 00:00:29]} b5 {[%clk 01:30:44]} {[%emt
00:01:53]} 12. Bb3 {[%clk 01:34:37]} {[%emt 00:00:14]} Bb7 {[%clk 01:30:48]}
{[%emt 00:00:26]} 13. a4 {[%clk 01:34:41]} {[%emt 00:00:26]} Na7 {[%clk
01:28:05]} {[%emt 00:03:13]} 14. axb5 {[%clk 01:32:27]} {[%emt 00:02:43]} axb5
{[%clk 01:28:11]} {[%emt 00:00:24]} 15. Nd5 {[%clk 01:32:44]} {[%emt 00:00:13]}
c6 {[%clk 01:27:21]} {[%emt 00:01:20]} 16. Nxf6+ {[%clk 01:32:11]} {[%emt
00:01:03]} gxf6 {[%clk 01:26:55]} {[%emt 00:00:56]} 17. Qf2 {[%clk 01:31:30]}
{[%emt 00:01:11]} Kh7 {[%clk 01:26:52]} {[%emt 00:00:34]} 18. Bxf7 {[%clk
01:31:34]} {[%emt 00:00:26]} Re7 {[%clk 01:26:58]} {[%emt 00:00:24]} 19. Bb3
{[%clk 01:31:29]} {[%emt 00:00:35]} Rg7 {[%clk 01:27:09]} {[%emt 00:00:19]} 20.
Nh2 {[%clk 01:31:26]} {[%emt 00:00:33]} Bc8 {[%clk 01:24:19]} {[%emt 00:03:20]}
21. Ng4 {[%clk 01:30:08]} {[%emt 00:01:48]} Kh8 {[%clk 01:19:12]} {[%emt
00:05:37]} 22. Qf3 {[%clk 01:28:41]} {[%emt 00:01:56]} Bxg4 {[%clk 01:18:55]}
{[%emt 00:00:48]} 23. hxg4 {[%clk 01:29:01]} {[%emt 00:00:10]} Rg6 {[%clk
01:19:05]} {[%emt 00:00:20]} 24. Bf7 {[%clk 01:28:35]} {[%emt 00:00:55]} Rg7
{[%clk 01:17:18]} {[%emt 00:02:18]} 25. Bh5 {[%clk 01:27:51]} {[%emt 00:01:14]}
Nc8 {[%clk 01:15:58]} {[%emt 00:01:49]} 26. Qxf6 {[%clk 01:27:50]} {[%emt
00:00:32]} Qxf6 {[%clk 01:16:16]} {[%emt 00:00:12]} 27. Rxf6 {[%clk 01:28:13]}
{[%emt 00:00:07]} Kh7 {[%clk 01:16:11]} {[%emt 00:00:35]} 28. Rf8 {[%clk
01:27:56]} {[%emt 00:00:45]} Rc7 {[%clk 01:16:16]} {[%emt 00:00:27]} 29. Ref1
{[%clk 01:27:06]} {[%emt 00:01:19]} Ra2 {[%clk 01:16:23]} {[%emt 00:00:23]} 30.
Rb1 {[%clk 01:25:32]} {[%emt 00:02:04]} Nb6 {[%clk 01:16:22]} {[%emt 00:00:32]}
31. Rf7+ {[%clk 01:23:39]} {[%emt 00:02:23]} Rxf7 {[%clk 01:16:29]} {[%emt
00:00:23]} 32. Bxf7 {[%clk 01:24:06]} {[%emt 00:00:02]} d5 {[%clk 01:16:52]}
{[%emt 00:00:09]} 33. Be8 {[%clk 01:23:57]} {[%emt 00:00:37]} dxe4 {[%clk
01:11:46]} {[%emt 00:05:37]} 34. dxe4 {[%clk 01:23:21]} {[%emt 00:01:05]} Nc4
{[%clk 01:11:35]} {[%emt 00:00:42]} 35. Kf2 {[%clk 01:21:30]} {[%emt 00:02:20]}
Nd2 {[%clk 01:11:19]} {[%emt 00:00:48]} 36. Rd1 {[%clk 01:20:59]} {[%emt
00:00:59]} Nxe4+ {[%clk 01:11:37]} {[%emt 00:00:12]} 37. Kf3 {[%clk 01:21:16]}
{[%emt 00:00:12]} Ng5+ {[%clk 01:11:40]} {[%emt 00:00:28]} 38. Ke2 {[%clk
01:20:49]} {[%emt 00:00:53]} Rxb2 {[%clk 01:11:49]} {[%emt 00:00:26]} 39. Kd3
{[%clk 01:20:13]} {[%emt 00:01:05]} c5 {[%clk 01:11:02]} {[%emt 00:01:18]} 40.
Kc3 {[%clk 01:20:01]} {[%emt 00:00:42]} Rb4 {[%clk 01:10:26]} {[%emt 00:01:07]}
41. Rd7+ {[%clk 01:19:17]} {[%emt 00:01:13]} Kg8 {[%clk 01:10:18]} {[%emt
00:00:31]} 42. Bg6 {[%clk 01:18:27]} {[%emt 00:01:26]} Rxg4 {[%clk 01:07:42]}
{[%emt 00:03:07]} 43. Rd5 {[%clk 01:16:47]} {[%emt 00:02:09]} b4+ {[%clk
01:05:29]} {[%emt 00:02:44]} 44. Kb2 {[%clk 01:16:14]} {[%emt 00:01:02]} Rxg2
{[%clk 00:58:46]} {[%emt 00:07:14]} 45. Rxe5 {[%clk 01:16:02]} {[%emt
00:00:42]} Nf3 {[%clk 00:56:46]} {[%emt 00:02:30]} 46. Rxc5 {[%clk 01:12:32]}
{[%emt 00:03:59]} Rxg6 {[%clk 00:54:36]} {[%emt 00:02:40]} 47. Kb3 {[%clk
01:11:43]} {[%emt 00:01:20]} Rb6 {[%clk 00:53:49]} {[%emt 00:01:17]} 48. Rd5
{[%clk 01:09:48]} {[%emt 00:02:23]} Re6 {[%clk 00:52:42]} {[%emt 00:01:38]} 49.
Kxb4 {[%clk 01:08:57]} {[%emt 00:01:22]} Rxe3 {[%clk 00:52:49]} {[%emt
00:00:22]} 50. c4 {[%clk 01:09:03]} {[%emt 00:00:24]} Re5 {[%clk 00:52:51]}
{[%emt 00:00:29]} 51. Rd3 {[%clk 01:08:51]} {[%emt 00:00:38]} Ne1 {[%clk
00:52:18]} {[%emt 00:01:06]} 52. Rd8+ {[%clk 01:07:39]} {[%emt 00:01:43]} Kf7
{[%clk 00:52:33]} {[%emt 00:00:15]} 53. Rd2 {[%clk 01:06:46]} {[%emt 00:01:22]}
h5 {[%clk 00:52:22]} {[%emt 00:00:42]} 54. c5 {[%clk 01:06:48]} {[%emt
00:00:26]} Ke7 {[%clk 00:36:43]} {[%emt 00:16:11]} 55. c6 {[%clk 01:06:06]}
{[%emt 00:01:11]} Nf3 {[%clk 00:36:27]} {[%emt 00:00:45]} 56. Rd3 {[%clk
01:03:36]} {[%emt 00:03:01]} Re4+ {[%clk 00:35:13]} {[%emt 00:01:44]} 57. Kb5
{[%clk 01:03:11]} {[%emt 00:00:55]} Nd4+ {[%clk 00:34:53]} {[%emt 00:00:51]} 58.
Kb6 {[%clk 01:03:14]} {[%emt 00:00:26]} Nxc6 {[%clk 00:34:43]} {[%emt
00:00:40]} 59. Kxc6 {[%clk 01:03:35]} {[%emt 00:00:10]} Ke6 {[%clk 00:34:34]}
{[%emt 00:00:39]} 60. Rd8 {[%clk 01:02:52]} {[%emt 00:01:12]} h4 {[%clk
00:34:24]} {[%emt 00:00:41]} 61. Kc5 {[%clk 01:02:49]} {[%emt 00:00:31]} Kf5
{[%clk 00:32:58]} {[%emt 00:01:57]} 62. Rh8 {[%clk 01:02:43]} {[%emt 00:00:37]}
Kg4 {[%clk 00:33:19]} {[%emt 00:00:08]} 63. Kd5 {[%clk 01:03:05]} {[%emt
00:00:09]} Re1 {[%clk 00:33:25]} {[%emt 00:00:24]} 64. Rg8+ {[%clk 01:03:21]}
{[%emt 00:00:14]} Kh3 {[%clk 00:33:40]} {[%emt 00:00:15]} 65. Kd4 {[%clk
01:03:26]} {[%emt 00:00:25]} Kh2 {[%clk 00:33:57]} {[%emt 00:00:13]} 66. Rg4
{[%clk 01:03:42]} {[%emt 00:00:13]} h3 {[%clk 00:34:14]} {[%emt 00:00:15]} 67.
Kd3 {[%clk 01:03:54]} {[%emt 00:00:16]} Kh1 {[%clk 00:33:49]} {[%emt 00:00:56]}
68. Rg3 {[%clk 01:03:57]} {[%emt 00:00:27]} h2 {[%clk 00:34:03]} {[%emt
00:00:17]} 69. Kd2 {[%clk 01:04:06]} {[%emt 00:00:20]} Rg1 {[%clk 00:34:21]}
{[%emt 00:00:12]} 70. Re3 {[%clk 01:04:18]} {[%emt 00:00:17]} Rg2+ {[%clk
00:33:43]} {[%emt 00:01:10]} 71. Kd1 {[%clk 01:04:29]} {[%emt 00:00:19]} Kg1
{[%clk 00:33:39]} {[%emt 00:00:34]} 72. Re1 {[%clk 01:04:50]} {[%emt 00:00:08]}
Kf2 {[%clk 00:33:55]} {[%emt 00:00:14]} 73. Rh1 {[%clk 01:04:55]} {[%emt
00:00:26]} Rg1+ {[%clk 00:34:16]} {[%emt 00:00:09]} 74. Rxg1 {[%clk 01:04:57]}
{[%emt 00:00:27]} hxg1=Q+ {[%clk 00:34:35]} {[%emt 00:00:09]} 75. Kc2 {[%clk
01:05:26]} {[%emt 00:00:04]} Qg3 {[%clk 00:34:39]} {[%emt 00:00:25]} 76. Kb2
{[%clk 01:05:52]} {[%emt 00:00:05]} Qd3 {[%clk 00:35:00]} {[%emt 00:00:08]} 77.
Ka1 {[%clk 01:06:16]} {[%emt 00:00:06]} Qb5 {[%clk 00:35:17]} {[%emt 00:00:14]}
78. Ka2 {[%clk 01:06:39]} {[%emt 00:00:07]} Ke2 {[%emt 00:00:08]} 79. Ka1
{[%clk 01:07:07]} {[%emt 00:00:02]} Kd2 {[%clk 00:35:59]} {[%emt 00:00:10]} 80.
Ka2 {[%clk 01:07:34]} {[%emt 00:00:03]} Kc2 {[%clk 00:36:11]} {[%emt 00:00:17]}
81. Ka1 {[%clk 01:08:03]} {[%emt 00:00:02]} Qb2# {[%clk 00:36:32]} {[%emt
00:00:09]} 0-1

[Event "NJSK 2024 Cm"]
[Site "Groningen, Netherlands"]
[Date "2024.05.02"]
[Round "6.6"]
[White "Esvelt, Klio"]
[Black "Jermin, Ayleanna"]
[Result "1-0"]
[TimeControl "90min/40moves + 30min + 30sec/move"]
[WhiteElo "1353"]
[BlackElo "1249"]

1. e4 {[%clk 01:30:30]} {[%emt 01:56:33]} e5 {[%clk 01:30:34]} {[%emt
00:00:29]} 2. Nf3 {[%clk 01:31:26]} {[%emt 00:00:03]} Nc6 {[%clk 01:30:24]}
{[%emt 00:00:41]} 3. d4 {[%clk 01:31:48]} {[%emt 00:00:08]} f6 {[%clk
01:30:20]} {[%emt 00:00:34]} 4. dxe5 {[%clk 01:31:41]} {[%emt 00:00:37]} fxe5
{[%clk 01:30:26]} {[%emt 00:00:24]} 5. Bc4 {[%clk 01:31:42]} {[%emt 00:00:22]}
h6 {[%clk 01:30:05]} {[%emt 00:00:57]} 6. Nc3 {[%clk 01:31:53]} {[%emt
00:00:20]} Bb4 {[%clk 01:29:59]} {[%emt 00:00:35]} 7. Bd2 {[%clk 01:31:36]}
{[%emt 00:00:46]} Nf6 {[%clk 01:27:42]} {[%emt 00:02:48]} 8. a3 {[%clk
01:31:31]} {[%emt 00:00:35]} Bxc3 {[%clk 01:27:30]} {[%emt 00:00:41]} 9. Bxc3
{[%clk 01:31:52]} {[%emt 00:00:10]} Nxe4 {[%clk 01:25:30]} {[%emt 00:02:30]} 10.
Qd5 {[%clk 01:32:05]} {[%emt 00:00:10]} Nd6 {[%clk 01:25:10]} {[%emt 00:00:57]}
11. Nxe5 {[%clk 01:31:54]} {[%emt 00:00:41]} Qe7 {[%clk 01:25:00]} {[%emt
00:00:40]} 12. O-O-O {[%clk 01:31:47]} {[%emt 00:00:37]} Nxe5 {[%clk 01:22:27]}
{[%emt 00:03:04]} 13. Bxe5 {[%clk 01:31:53]} {[%emt 00:00:24]} Kd8 {[%clk
01:20:28]} {[%emt 00:02:28]} 14. Rhe1 {[%clk 01:31:36]} {[%emt 00:00:31]} Qg5+
{[%clk 01:18:30]} {[%emt 00:02:43]} 15. Kb1 {[%clk 01:31:40]} {[%emt 00:00:27]}
Rf8 {[%clk 01:17:40]} {[%emt 00:01:19]} 16. f4 {[%clk 01:31:07]} {[%emt
00:01:03]} Qf5 {[%clk 01:17:06]} {[%emt 00:01:05]} 17. Bxg7 {[%clk 01:31:08]}
{[%emt 00:00:29]} Qxd5 {[%clk 01:17:03]} {[%emt 00:00:32]} 18. Bxd5 {[%clk
01:31:09]} {[%emt 00:00:30]} Rxf4 {[%clk 01:17:08]} {[%emt 00:00:25]} 19. Bxh6
{[%clk 01:31:18]} {[%emt 00:00:21]} Rh4 {[%clk 01:16:47]} {[%emt 00:00:50]} 20.
Bg5# {[%clk 01:31:31]} {[%emt 00:00:17]} 1-0

[Event "NJSK 2024 Cm"]
[Site "Groningen, Netherlands"]
[Date "2024.05.02"]
[Round "6.7"]
[White "Schipper, Sarah"]
[Black "Zhang, Jinchen"]
[Result "0-1"]
[TimeControl "90min/40moves + 30min + 30sec/move"]
[WhiteElo "1238"]
[BlackElo "1348"]

1. e4 {[%clk 01:30:57]} {[%emt 00:00:02]} c5 {[%clk 01:30:47]} {[%emt
00:00:13]} 2. Nc3 {[%clk 01:31:19]} {[%emt 00:00:08]} e6 {[%clk 01:30:55]}
{[%emt 00:00:22]} 3. Nf3 {[%clk 01:30:25]} {[%emt 00:01:25]} Nc6 {[%clk
01:31:04]} {[%emt 00:00:22]} 4. g3 {[%clk 01:29:19]} {[%emt 00:01:35]} Be7
{[%clk 01:29:53]} {[%emt 00:01:41]} 5. d3 {[%clk 01:29:24]} {[%emt 00:00:26]}
Nf6 {[%clk 01:29:32]} {[%emt 00:00:49]} 6. Bg2 {[%clk 01:28:44]} {[%emt
00:01:11]} d6 {[%clk 01:29:35]} {[%emt 00:00:27]} 7. Be3 {[%clk 01:27:57]}
{[%emt 00:01:17]} d5 {[%clk 01:28:34]} {[%emt 00:01:30]} 8. O-O {[%clk
01:26:19]} {[%emt 00:02:08]} d4 {[%clk 01:26:47]} {[%emt 00:02:18]} 9. e5
{[%clk 01:24:21]} {[%emt 00:02:28]} Nd7 {[%clk 01:26:09]} {[%emt 00:01:08]} 10.
Bd2 {[%clk 01:15:39]} {[%emt 00:09:12]} dxc3 {[%clk 01:26:13]} {[%emt
00:00:26]} 11. Bxc3 {[%clk 01:15:37]} {[%emt 00:00:32]} O-O {[%clk 01:26:03]}
{[%emt 00:00:40]} 12. Qd2 {[%clk 01:03:08]} {[%emt 00:12:59]} b5 {[%clk
01:24:53]} {[%emt 00:01:40]} 13. Qe3 {[%clk 01:00:52]} {[%emt 00:02:45]} Bb7
{[%clk 01:23:12]} {[%emt 00:02:12]} 14. Bd2 {[%clk 01:00:15]} {[%emt 00:01:07]}
Qc7 {[%clk 01:16:40]} {[%emt 00:07:02]} 15. d4 {[%clk 00:55:57]} {[%emt
00:04:47]} cxd4 {[%clk 01:13:14]} {[%emt 00:03:57]} 16. Nxd4 {[%clk 00:55:22]}
{[%emt 00:01:06]} Nxd4 {[%clk 01:13:04]} {[%emt 00:00:38]} 17. Qxd4 {[%clk
00:50:36]} {[%emt 00:05:17]} Bxg2 {[%clk 01:12:32]} {[%emt 00:01:01]} 18. Kxg2
{[%clk 00:50:31]} {[%emt 00:00:36]} Nxe5 {[%clk 01:11:36]} {[%emt 00:01:26]} 19.
Bc3 {[%clk 00:45:18]} {[%emt 00:05:43]} Bf6 {[%clk 01:10:14]} {[%emt 00:01:51]}
20. Qf4 {[%clk 00:41:11]} {[%emt 00:04:38]} Qc6+ {[%clk 01:03:03]} {[%emt
00:07:42]} 21. Kh3 {[%clk 00:34:39]} {[%emt 00:07:01]} Ng6 {[%clk 01:02:37]}
{[%emt 00:00:56]} 22. Qe3 {[%clk 00:33:15]} {[%emt 00:01:53]} Bxc3 {[%clk
01:02:39]} {[%emt 00:00:29]} 23. bxc3 {[%clk 00:33:03]} {[%emt 00:00:41]} a6
{[%clk 01:02:30]} {[%emt 00:00:40]} 24. Rac1 {[%clk 00:32:29]} {[%emt
00:01:03]} Rac8 {[%clk 01:02:44]} {[%emt 00:00:17]} 25. Rfd1 {[%clk 00:31:39]}
{[%emt 00:01:20]} Qxc3 {[%clk 01:01:53]} {[%emt 00:01:21]} 26. Qxc3 {[%clk
00:32:01]} {[%emt 00:00:09]} Rxc3 {[%emt 00:00:11]} 27. Rd6 {[%clk 00:31:19]}
{[%emt 00:01:09]} Ra3 {[%clk 01:02:24]} {[%emt 00:00:20]} 28. Ra1 {[%clk
00:31:08]} {[%emt 00:00:41]} h6 {[%clk 01:02:31]} {[%emt 00:00:23]} 29. Kg2
{[%clk 00:30:40]} {[%emt 00:00:57]} Rc8 {[%clk 01:02:33]} {[%emt 00:00:28]} 30.
Rd2 {[%clk 00:30:58]} {[%emt 00:00:13]} Rac3 {[%clk 01:02:36]} {[%emt
00:00:27]} 31. Rc1 {[%clk 00:31:06]} {[%emt 00:00:22]} Ne5 {[%clk 01:02:49]}
{[%emt 00:00:17]} 32. Rd6 {[%clk 00:26:38]} {[%emt 00:04:58]} Rxc2 {[%clk
01:02:47]} {[%emt 00:00:32]} 33. Rxc2 {[%clk 00:26:58]} {[%emt 00:00:10]} Rxc2
{[%clk 01:03:12]} {[%emt 00:00:05]} 34. Rxa6 {[%clk 00:27:24]} {[%emt
00:00:05]} Nd3 {[%clk 01:02:54]} {[%emt 00:00:47]} 35. Kf3 {[%clk 00:25:53]}
{[%emt 00:02:01]} Rxf2+ {[%clk 01:02:05]} {[%emt 00:01:19]} 36. Ke3 {[%clk
00:26:04]} {[%emt 00:00:19]} Rxh2 {[%clk 01:02:26]} {[%emt 00:00:09]} 37. Kxd3
{[%clk 00:26:05]} {[%emt 00:00:29]} Rh3 {[%clk 01:02:48]} {[%emt 00:00:07]} 38.
Kd4 {[%clk 00:26:00]} {[%emt 00:00:35]} Rxg3 {[%clk 01:03:08]} {[%emt
00:00:11]} 39. Rb6 {[%clk 00:24:43]} {[%emt 00:01:47]} h5 {[%clk 01:03:28]}
{[%emt 00:00:10]} 40. Rxb5 {[%clk 00:25:07]} {[%emt 00:00:06]} h4 {[%clk
01:03:44]} {[%emt 00:00:14]} 41. Rb8+ {[%clk 00:25:06]} {[%emt 00:00:31]} Kh7
{[%clk 01:04:08]} {[%emt 00:00:06]} 42. a4 {[%clk 00:25:23]} {[%emt 00:00:14]}
Rg4+ {[%clk 01:04:31]} {[%emt 00:00:07]} 43. Ke3 {[%clk 00:25:42]} {[%emt
00:00:10]} Rxa4 {[%clk 01:04:55]} {[%emt 00:00:06]} 44. Kf2 {[%clk 00:25:55]}
{[%emt 00:00:16]} Rg4 {[%clk 01:05:08]} {[%emt 00:00:18]} 45. Rb3 {[%clk
00:26:08]} {[%emt 00:00:16]} Kh6 {[%clk 01:04:39]} {[%emt 00:01:00]} 46. Rh3
{[%clk 00:24:39]} {[%emt 00:01:59]} Kh5 {[%clk 01:05:01]} {[%emt 00:00:08]} 47.
Rh2 {[%clk 00:23:20]} {[%emt 00:01:48]} f5 {[%clk 01:04:39]} {[%emt 00:00:52]}
48. Kf3 {[%clk 00:23:31]} {[%emt 00:00:20]} e5 {[%clk 01:04:27]} {[%emt
00:00:43]} 49. Kf2 {[%clk 00:23:41]} {[%emt 00:00:19]} e4 {[%clk 01:04:18]}
{[%emt 00:00:40]} 50. Ke3 {[%clk 00:23:50]} {[%emt 00:00:20]} g5 {[%emt
00:00:25]} 51. Rh1 {[%clk 00:23:59]} {[%emt 00:00:19]} Rg3+ {[%clk 01:04:35]}
{[%emt 00:00:20]} 52. Kf2 {[%clk 00:23:34]} {[%emt 00:00:55]} f4 {[%clk
01:04:34]} {[%emt 00:00:31]} 53. Rh2 {[%clk 00:23:45]} {[%emt 00:00:19]} Kg4
{[%clk 01:04:24]} {[%emt 00:00:39]} 54. Ke2 {[%clk 00:23:51]} {[%emt 00:00:24]}
h3 {[%clk 01:04:34]} {[%emt 00:00:20]} 55. Kf1 {[%clk 00:24:04]} {[%emt
00:00:18]} f3 {[%clk 01:04:14]} {[%emt 00:00:50]} 56. Ke1 {[%clk 00:24:12]}
{[%emt 00:00:21]} e3 {[%clk 01:04:07]} {[%emt 00:00:38]} 57. Kf1 {[%clk
00:24:15]} {[%emt 00:00:26]} Rg2 {[%clk 01:04:02]} {[%emt 00:00:36]} 58. Rh1
{[%clk 00:24:08]} {[%emt 00:00:37]} Kg3 {[%clk 01:04:15]} {[%emt 00:00:17]} 59.
Ke1 {[%clk 00:24:06]} {[%emt 00:00:31]} h2 {[%clk 01:04:15]} {[%emt 00:00:30]}
60. Kf1 {[%clk 00:24:03]} {[%emt 00:00:33]} e2+ {[%clk 01:03:19]} {[%emt
00:01:27]} 61. Ke1 {[%clk 00:24:17]} {[%emt 00:00:15]} Rg1+ {[%clk 01:03:45]}
{[%emt 00:00:05]} 62. Rxg1+ {[%clk 00:24:27]} {[%emt 00:00:20]} hxg1=Q+ {[%clk
01:03:39]} {[%emt 00:00:36]} 63. Kd2 {[%clk 00:24:50]} {[%emt 00:00:07]} e1=Q+
{[%clk 01:03:47]} {[%emt 00:00:22]} 64. Kd3 {[%clk 00:25:07]} {[%emt 00:00:13]}
Qge3+ {[%clk 01:04:10]} {[%emt 00:00:06]} 65. Kc4 {[%clk 00:25:32]} {[%emt
00:00:07]} Q1c3+ {[%clk 01:04:33]} {[%emt 00:00:06]} 66. Kd5 {[%clk 00:25:48]}
{[%emt 00:00:14]} Qee5# {[%clk 01:04:14]} {[%emt 00:00:18]} 67. Kd4 {[%emt
00:00:24]} 0-1